[Event "26th OIBM 2023"]
[Site "Gmund am Tegernsee"]
[Date "2023.11.05"]
[Round "9.5"]
[White "Kargin, Arseny"]
[Black "Stocek, Jiri"]
[Result "0-1"]
[ECO "B53"]
[WhiteElo "2391"]
[BlackElo "2535"]
[Annotator "TA"]
[PlyCount "178"]
[EventDate "2023.10.04"]
[EventType "swiss"]
[EventCountry "GER"]
[SourceTitle "playchess.com"]
[Source "ChessBase"]
[SourceQuality "1"]
[TimeControl "40/5400+30:1800+30"]

{[%evp 9,178,8,38,34,27,33,43,22,18,0,0,0,-15,-19,0,-14,19,18,41,1,0,0,0,-58,-45,-42,15,7,149,152,132,148,135,139,137,0,0,0,95,0,0,-63,-67,-69,-68,-449,-434,-431,-257,-230,-264,-258,-262,-260,-261,-262,-256,-261,-250,-265,-268,-268,-269,-262,-166,-262,-235,-303,-307,-335,-372,-609,-539,-519,-463,-337,-44,-44,-44,-44,0,0,0,0,0,0,0,0,0,0,0,0,0,0,0,0,0,0,0,0,0,0,0,0,0,0,0,0,0,0,0,0,0,0,0,0,0,0,0,0,0,0,0,0,0,0,0,-80,0,-12850,-27999,-27999,-27999,-27999,-27999,-27999,-27999,-27999,-27999,-27999,-27999,-27999,-27999,-27999,-27999,-27999,-27999,-27999,-27999,-27999,-27999,-27999,-27999,-27999,-27999,-27999,-27999,-27999,-27999,-27999,-27999,-27999,-27999,-27999,-27999,-27999,-27999,-27999,-27999,-27999,-27999]} 1. e4 {[%emt 0:00:04]} c5 {[%emt 0:00:12]} 2. Nf3 {[%emt 0:00:09]} d6 {[%emt 0:00:19]} 3. d4 {[%emt 0:00:09]} cxd4 {[%emt 0:00:11]} 4. Qxd4 {[%emt 0:00:05]} Nf6 {[%emt 0:01:41]} 5. Nc3 {[%emt 0:00:10]} Bd7 {[%emt 0:04:58]} 6. Bg5 {[%emt 0:05:55] B53: Sicilian: 2...d6: Lines with Qxd4.} Nc6 {[%emt 0:01:40]} 7. Qd2 {[%emt 0:02:35]} a6 {[%emt 0:06:01] has lost popularity (7...e6).} 8. O-O-O {[%emt 0:02:11] White is slightly better.} b5 {[%emt 0:06:24]} 9. a3 {[%emt 0:37:06] [#]} Rb8 $146 {[%emt 0:06:51]} ({Predecessor:} 9... h6 10. Bh4 Rb8 11. e5 dxe5 12. Bg3 e6 13. Nxe5 Nxe5 14. Bxe5 b4 15. axb4 Bxb4 {1-0 Quinonez Garcia,S (2240)-Cadena Montoya,G (2186) COL-ch Amateurs U2300 2021 (7)}) 10. Bd3 {[%emt 0:04:57]} e6 {[%emt 0:02:39][%cal Be7e6,Be6e5][%mdl 32]} 11. Rhe1 {[%emt 0:02:25]} b4 {[%emt 0:09:48]} 12. axb4 {[%emt 0:00:43]} Nxb4 {[%emt 0:00:07]} 13. Bc4 {[%emt 0:08:17]} h6 {[%emt 0:10:28]} 14. Bf4 {[%emt 0:01:14]} (14. Bxf6 {simplifies} gxf6 15. Bb3 Qb6 16. Qf4) 14... Qa5 {[%emt 0:01:37] ( -> ...Qa1+)} 15. Kb1 $36 {[%emt 0:00:06][%mdl 2048] Against Qa1+. Black is under pressure.} (15. Bxd6 $2 Qa1+ 16. Nb1 Na2+ 17. Bxa2 Qxb2#) 15... e5 $1 {[%emt 0:00:22]} 16. Nd5 {[%emt 0:05:50]} Nfxd5 {[%emt 0:05:44]} (16... exf4 {looks sharper.} 17. Nxf6+ gxf6 18. e5 Kd8) 17. exd5 {[%emt 0:00:15][%cal Of3e5]} Ba4 {[%emt 0:04:48]} ({Better is} 17... f6 $1 $15 18. Qe2 Be7) 18. Bxe5 {[%emt 0:05:15]} dxe5 {[%emt 0:01:52]} (18... Bxc2+ $11 19. Qxc2 Qa1+ {[%mdl 64] Decoy} 20. Kxa1 Nxc2+ 21. Ka2 Nxe1 22. Rxe1 dxe5) 19. Rxe5+ $16 {[%emt 0:00:01]} Kd7 {[%emt 0:08:16]} 20. d6 {[%emt 0:00:13]} Qb6 {[%emt 0:00:13]} 21. b3 {[%emt 0:14:02]} (21. Bxf7 $2 Bxc2+ 22. Kc1 Bxd1 23. Kxd1 Qxd6 $19) 21... Bxd6 {[%emt 0:03:29][%cal Oh8d8]} 22. Rf5 {[%emt 0:01:11]} (22. Bxf7 $6 Rhd8 $11) (22. bxa4 $16 {[%cal Oc4b5] Bb5+! is the strong threat.} Rhd8 23. Bb3 (23. Bxf7 $2 Nd5+ $19) (23. a5 Qc7 $14) 23... Nxc2 24. Qxd6+ (24. Kc1 $2 Na1 $19) 24... Qxd6 25. Rxd6+ Kxd6 26. Kxc2) 22... f6 $1 $11 {[%emt 0:03:31][%cal Ob4c2]} 23. Nd4 {[%emt 0:02:29]} Rhe8 {[%emt 0:02:35]} 24. c3 {[%emt 0:03:56]} ({White should try} 24. bxa4 $16 {Hoping for Nb3.} Nc6+ 25. Nb5) 24... Rbc8 $1 {[%emt 0:02:31] Strongly threatening ...Rxc4.} 25. cxb4 {[%emt 0:02:32]} (25. bxa4 $2 Rxc4 26. Nb5 axb5 $19) (25. Be2 $11 Rxe2 26. Qxe2 Rxc3 27. Qe6+ (27. bxa4 Nd3+ 28. Nb5 axb5 $17) 27... Kc7 28. bxa4 Nd5+ 29. Nb5+ axb5 30. Rdxd5 (30. Rfxd5 bxa4+ {[%mdl 64] Discovered Attack}) 30... bxa4+ 31. Rb5 Rc1+ 32. Ka2 Rc2+ 33. Kb1 Rc1+ 34. Ka2 Rc2+ 35. Kb1 Rc1+) 25... Rxc4 $1 $15 {[%emt 0:01:38]} 26. bxc4 {[%emt 0:00:01]} Bxb4 {[%emt 0:00:17] Black has more active pieces.} 27. Rd5+ $2 {[%emt 0:01:16][%mdl 8192]} (27. c5 $1 $15 Bxd2+ {[%mdl 64] Discovered Attack} 28. cxb6 Bxd1 29. Rd5+ Kc8 30. Nf5) 27... Kc8 $19 {[%emt 0:01:02]} 28. c5 {[%emt 0:00:39]} (28. Qd3 Bxd1 29. Qh3+ Kb8) 28... Bxc5+ {[%emt 0:03:25] This pair of bishops is nice.} (28... Bxd2+ 29. cxb6 Bxd1 30. Nf5 $17) (28... Qb7 $142 29. c6 Qb6) 29. Ka1 {[%emt 0:00:33]} Bxd1 {[%emt 0:00:16]} 30. Qxd1 {[%emt 0:00:01]} Qa5+ {[%emt 0:01:14]} 31. Kb1 {[%emt 0:00:04] aiming for Qg4+.} Qb4+ {[%emt 0:01:29]} 32. Ka2 {[%emt 0:00:13] And now Qg4+ would win.} Qc4+ {[%emt 0:05:47]} (32... Re5 33. Rd8+ Kb7 34. Rb8+ Kxb8 35. Nc6+ Kc7 36. Nxb4 Bxb4 37. Qg4 $16) 33. Qb3 {[%emt 0:00:01]} Qxb3+ {[%emt 0:00:13]} 34. Kxb3 {[%emt 0:00:04]} Bxd4 {[%emt 0:03:04]} 35. Rxd4 {[%emt 0:00:01][%mdl 4096] Endgame KR-KR} Re2 {[%emt 0:00:08]} 36. Rf4 {[%emt 0:00:19]} Kc7 {[%emt 0:00:36]} 37. h4 {[%emt 0:01:22]} (37. Kc3 {keeps fighting.}) 37... Kd6 {[%emt 0:00:31]} 38. Kc3 {[%emt 0:01:22]} Ke5 {[%emt 0:00:34]} 39. Rg4 {[%emt 0:00:45]} g5 {[%emt 0:01:11]} (39... Rxf2 40. Rxg7 a5 41. Ra7 $17) 40. hxg5 $2 {[%emt 0:00:19]} (40. f3 h5 {[%mdl 64] Deflection} 41. Ra4) 40... fxg5 {[%emt 0:01:57]} ({Weaker is} 40... hxg5 41. f3 $17) 41. f3 {[%emt 0:30:45]} a5 {[%emt 0:07:08]} 42. Kd3 {[%emt 0:00:00]} Rb2 {[%emt 0:01:03]} (42... Ra2 $1 $19 {White must now prevent ...Ke6.} 43. Re4+ Kd5) 43. Re4+ $15 {[%emt 0:00:00]} Kf6 {[%emt 0:00:37]} 44. Ra4 {[%emt 0:00:00]} Rb5 {[%emt 0:07:47]} 45. g4 $1 {[%emt 0:00:00]} Ke5 {[%emt 0:00:10]} 46. f4+ {[%emt 0:00:00]} gxf4 {[%emt 0:03:05]} 47. Re4+ {[%emt 0:00:00]} Kf6 {[%emt 0:03:10]} 48. Rxf4+ {[%emt 0:00:00]} Kg5 {[%emt 0:00:08]} 49. Ra4 {[%emt 0:00:00]} Kh4 {[%emt 0:02:04]} 50. Ke3 {[%emt 0:00:00]} Kg3 {[%emt 0:00:25]} 51. Ke2 {[%emt 0:00:00]} Re5+ {[%emt 0:00:25]} 52. Kd2 {[%emt 0:00:00]} Rd5+ {[%emt 0:01:57]} 53. Ke3 {[%emt 0:00:00]} Re5+ {[%emt 0:01:21]} 54. Kd2 {[%emt 0:00:00]} Kf3 {[%emt 0:00:02]} 55. Kd3 {[%emt 0:00:00]} Rd5+ {[%emt 0:01:31]} 56. Kc4 {[%emt 0:00:00]} Ke4 {[%emt 0:01:41] ...Rd4+ would be deadly.} 57. Ra1 {[%emt 0:01:42]} Rg5 {[%emt 0:01:28]} 58. Kc3 {[%emt 0:02:38]} Ke3 {[%emt 0:00:58]} ({Much weaker is} 58... Rxg4 $6 59. Rxa5 Rg5 60. Ra7 $17) 59. Ra4 {[%emt 0:00:44]} Rc5+ {[%emt 0:00:55]} 60. Kb3 {[%emt 0:00:03]} Rb5+ {[%emt 0:00:28]} 61. Kc3 {[%emt 0:00:05]} Rg5 {[%emt 0:01:12]} 62. Kb3 {[%emt 0:00:07]} Rc5 {[%emt 0:00:17]} 63. Ra1 {[%emt 0:00:30]} Kf4 {[%emt 0:01:20]} 64. Ra4+ $1 {[%emt 0:00:32]} Kg5 {[%emt 0:00:26]} 65. Kb2 {[%emt 0:00:32]} Kh4 {[%emt 0:00:15]} 66. Kb3 {[%emt 0:00:55]} Kg3 {[%emt 0:00:37]} 67. Kb2 {[%emt 0:00:48]} Kf3 {[%emt 0:01:07]} 68. Kb3 {[%emt 0:00:22]} (68. Rd4 $11 {keeps the balance.}) 68... Rg5 {[%emt 0:00:03]} (68... Rc7 $1 $17) 69. Kc2 $2 {[%emt 0:00:24][%mdl 8192]} (69. Kc3 $11) 69... Rxg4 $19 {[%emt 0:00:10]} 70. Rxa5 {[%emt 0:00:06] [#] Black mates.} Rg5 $1 {[%emt 0:00:07]} 71. Ra6 {[%emt 0:02:37]} h5 {[%emt 0:00:04]} 72. Kd2 {[%emt 0:00:38] [#]} h4 $1 {[%emt 0:00:47]} 73. Rf6+ {[%emt 0:01:25]} Kg2 {[%emt 0:00:45]} 74. Ke2 {[%emt 0:00:04]} h3 {[%emt 0:01:07]} 75. Rf2+ {[%emt 0:00:30]} Kg3 {[%emt 0:00:09]} 76. Rf3+ {[%emt 0:00:36]} Kg4 {[%emt 0:01:08]} 77. Kf2 {[%emt 0:02:03]} h2 {[%emt 0:00:10]} 78. Rg3+ {[%emt 0:00:22]} Kh4 {[%emt 0:00:10]} 79. Rxg5 {[%emt 0:00:26]} h1=Q {[%emt 0:00:13] KQ-KR} ({Stronger than} 79... h1=B 80. Rg7 Bc6 81. Ke3 $11) 80. Rg2 {[%emt 0:01:03]} Qh3 {[%emt 0:01:02]} 81. Rg1 {[%emt 0:00:08]} Qf5+ {[%emt 0:00:11]} 82. Ke2 {[%emt 0:00:04]} Qe4+ {[%emt 0:00:35]} 83. Kf2 {[%emt 0:00:03]} Qd4+ {[%emt 0:00:20]} 84. Kg2 {[%emt 0:01:02]} Qe3 {[%emt 0:01:37]} 85. Kf1 {[%emt 0:00:28]} Qf3+ {[%emt 0:00:41]} 86. Ke1 {[%emt 0:00:01]} Kh3 {[%emt 0:00:09]} 87. Rf1 {[%emt 0:01:09]} Qe3+ {[%emt 0:00:05]} 88. Kd1 {[%emt 0:00:01]} Kg2 {[%emt 0:00:30]} 89. Rf8 {[%emt 0:01:03]} Qd4+ {[%emt 0:00:28] A wild game. A cool game by Stocek.   Weighted Error Value: White=0.32/Black=0.23 (precise)} 0-1

[Event "26th OIBM 2023"]
[Site "Gmund am Tegernsee"]
[Date "2023.11.05"]
[Round "9.6"]
[White "Schmider, Niklas"]
[Black "Mastrovasilis, Dimitrios"]
[Result "0-1"]
[ECO "B46"]
[WhiteElo "2395"]
[BlackElo "2573"]
[Annotator "TA"]
[PlyCount "98"]
[EventDate "2023.10.04"]
[EventType "swiss"]
[EventCountry "GER"]
[SourceTitle "playchess.com"]
[Source "ChessBase"]
[SourceQuality "1"]
[TimeControl "40/5400+30:1800+30"]

{[%evp 16,98,12,20,16,12,17,17,31,-69,-58,-70,-66,-75,-57,-65,-6,-66,-67,-65,-65,-72,-45,-81,-81,-76,-31,-31,-27,-30,0,-9,0,0,0,0,0,0,0,-16,-8,-17,-14,-45,-54,-53,-59,-47,-2,-2,0,0,1,-66,0,-71,-83,-190,-189,-292,-132,-132,-119,-132,-120,-105,-78,-78,-78,-59,-49,-183,-45,-306,-238,-402,-382,-616,-464,-1227,-1711,-1441,-746,-12839,-12839]} 1. e4 {[%emt 0:00:01]} c5 {[%emt 0:02:59]} 2. Nf3 {[%emt 0:03:42]} e6 {[%emt 0:00:20]} 3. d4 {[%emt 0:00:08]} cxd4 {[%emt 0:00:09]} 4. Nxd4 {[%emt 0:00:05]} Nc6 {[%emt 0:00:13]} 5. Nc3 {[%emt 0:00:18]} a6 {[%emt 0:00:19]} 6. Nxc6 {[%emt 0:01:49]} bxc6 {[%emt 0:00:13]} 7. Bd3 {[%emt 0:00:09]} d5 {[%emt 0:00:20]} 8. O-O {[%emt 0:00:13]} Nf6 {[%emt 0:00:23]} 9. Re1 {[%emt 0:00:18]} Be7 {[%emt 0:00:22] B46: Sicilian: Taimanov: 5 Nc3 a6.} 10. Qf3 {[%emt 0:08:17]} O-O {[%emt 0:23:13]} 11. Bf4 {[%emt 0:01:42]} Re8 $5 {[%emt 0:05:03][%mdl 4] The position is equal. Exploring less charted territory.} 12. Rad1 {[%emt 0:06:04] [#]} (12. Na4 $14) 12... e5 $1 $15 {[%emt 0:06:39]} 13. Bxe5 {[%emt 0:05:27]} Bg4 {[%emt 0:00:21]} 14. Qg3 {[%emt 0:00:29]} Bxd1 {[%emt 0:00:15]} 15. Rxd1 {[%emt 0:00:03] [#]} g6 $146 {[%emt 0:08:48]} (15... Nh5 $1 $15 16. Qf3 Bf6 17. Bxf6 Nxf6) ({Predecessor:} 15... Nh5 16. Qf3 Bf6 17. Bxf6 Nxf6 18. exd5 cxd5 19. h3 Qa5 20. a3 Rad8 21. Ne2 Qb6 {0-1 Van Riemsdijk,H (2390)-Jansa,V (2499) Wch Seniors 20th 2010 (5)}) 16. exd5 {[%emt 0:01:41]} ({Better is} 16. Qf3 $1 $11) 16... Nxd5 {[%emt 0:02:40]} 17. Nxd5 {[%emt 0:03:49]} Qxd5 {[%emt 0:01:38]} 18. Bc3 {[%emt 0:03:18]} Rad8 {[%emt 0:06:00]} (18... Bd6 $5 {[%cal Rd6g3]} 19. f4 Bb4 $17) 19. h3 {[%emt 0:04:01]} Bd6 {[%emt 0:02:11]} (19... Qxa2 20. Qe5 f6 21. Qe4 $14) 20. f4 {[%emt 0:11:06][%cal Bf2f4,Bf4f5][%mdl 32]} Bf8 {[%emt 0:09:11]} 21. Kh2 {[%emt 0:08:14][%cal Od3g6]} Qh5 {[%emt 0:07:25]} 22. Rf1 {[%emt 0:02:14]} a5 {[%emt 0:00:59]} 23. Be5 {[%emt 0:12:26] A strong pair of Bishops.} Bg7 {[%emt 0:02:25]} 24. Bxg7 {[%emt 0:00:14]} (24. Bc4 $2 Rxe5 25. Bxf7+ (25. fxe5 $2 Bxe5 26. Rf4 Qh6 $19 {[%mdl 64] Pin}) 25... Kh8 $19) 24... Kxg7 {[%emt 0:00:03]} 25. f5 {[%emt 0:00:07]} Rd7 {[%emt 0:06:56] Wards off Qc7} 26. Rf4 {[%emt 0:07:39]} Qh6 {[%emt 0:03:49]} 27. Bc4 {[%emt 0:10:05]} Kh8 {[%emt 0:01:02]} 28. fxg6 {[%emt 0:03:28]} fxg6 {[%emt 0:00:18]} 29. Bf7 {[%emt 0:03:55]} Rf8 {[%emt 0:03:30]} 30. Rh4 $1 {[%emt 0:00:27]} Qg7 {[%emt 0:00:38]} 31. Bxg6 {[%emt 0:01:16]} Qf6 {[%emt 0:01:28][%cal Of8g8]} (31... Rg8 $2 32. Rxh7+ Qxh7 33. Qe5+ Rgg7 34. Bxh7 $18) 32. Bd3 {[%emt 0:02:53]} Rg7 {[%emt 0:00:25]} 33. Qe1 {[%emt 0:00:30]} Rfg8 {[%emt 0:03:00]} 34. Be4 {[%emt 0:00:37]} (34. g3 $11) 34... Re8 {[%emt 0:01:10]} ({Black should try} 34... Qe5+ $15 35. g3 Rf8) 35. c3 {[%emt 0:00:40]} (35. g3 Qxb2 36. Qf2 Qe5 $15) (35. b3 $11 {keeps the balance.}) 35... a4 $36 {[%emt 0:02:06][%cal Ba5a4,Ba4a3][%mdl 3104] Black has strong compensation. Black has strong initiative. Black is more active.} 36. b3 {[%emt 0:00:25]} (36. Kg1 $17 {is a better defense.}) 36... a3 $1 $19 {[%emt 0:00:16]} (36... axb3 37. axb3 c5 38. Kh1 $17) 37. Kg1 {[%emt 0:00:20]} (37. Kh1 {was worth a try.}) 37... Qg5 {[%emt 0:00:43]} (37... Qe7 $1 $19 {Strongly threatening ...Rf8.} 38. Qf2 Rf8) 38. Qf2 $17 {[%emt 0:00:46][%cal Oe4h7] Prevents Rf8} Qc1+ {[%emt 0:00:02]} 39. Kh2 {[%emt 0:00:24][%cal Oe4h7] aiming for Bxh7!} Qxc3 {[%emt 0:00:17]} 40. Qf4 {[%emt 0:00:33][%cal Ob3b4]} Qe5 {[%emt 0:02:06]} 41. Bxc6 {[%emt 0:22:22] [#]} Qxf4+ $1 {[%emt 0:04:26]} 42. Rxf4 {[%emt 0:00:03][%mdl 4096] Endgame KRR-KRB} Re2 {[%emt 0:00:52][%cal Og7a7] Threatens to win with ...Ra7!} 43. Ra4 {[%emt 0:05:40] [#] Repels Ra7} (43. Rf8+ $2 Rg8 44. Rxg8+ Kxg8 45. Bd5+ Kg7 $19) (43. b4 $1 $15) 43... Rg6 {[%emt 0:07:54]} ({Inferior is} 43... Rxa2 44. b4 Rg5 45. b5 $17) (43... Rc7 $1 $19 {[%cal Rc7c6]} 44. Ra6 (44. Ra8+ $2 Kg7 $19) 44... Rxa2) 44. Bd5 {[%emt 0:02:33][%mdl 8192]} (44. Ra8+ $1 $15 Kg7 45. Ra7+ Kh6 46. Bf3 Rxa2 47. h4) 44... Rd6 {[%emt 0:01:23]} 45. Ra5 {[%emt 0:00:48]} (45. Bc4 Rxa2 46. Kg3) 45... Rxa2 $19 {[%emt 0:01:42]} 46. b4 $2 {[%emt 0:00:42]} (46. Kg3 Rb2 47. b4) 46... Rb2 {[%emt 0:00:44] ...Rd2 is the strong threat. Black is clearly winning.} 47. Bf3 {[%emt 0:01:10]} (47. h4 $142) 47... a2 {[%emt 0:04:23]} ({Weaker is} 47... Rxb4 48. Rxa3 Kg7 49. g4 $17) 48. b5 {[%emt 0:00:05]} Rdd2 {[%emt 0:00:25] White must now prevent ...Rb1.} 49. Be4 {[%emt 0:01:07]} Rd1 {[%emt 0:00:50] Weighted Error Value: White=0.56/Black=0.25 (precise)} 0-1

[Event "26th OIBM 2023"]
[Site "Gmund am Tegernsee"]
[Date "2023.11.05"]
[Round "9.7"]
[White "Besou, Hussain"]
[Black "Bauer, Christian"]
[Result "0-1"]
[ECO "A40"]
[WhiteElo "2351"]
[BlackElo "2552"]
[Annotator "TA"]
[PlyCount "60"]
[EventDate "2023.10.04"]
[EventType "swiss"]
[EventCountry "GER"]
[SourceTitle "playchess.com"]
[Source "ChessBase"]
[SourceQuality "1"]
[TimeControl "40/5400+30:1800+30"]

{[%evp 9,60,20,13,-1,47,0,0,-13,-16,-25,8,0,0,-39,-47,-65,-70,-142,-139,-206,-208,-319,-328,-322,-339,-335,-339,-395,-409,-785,-770,-747,-744,-991,-946,-1254,-702,-1126,-833,-858,-807,-900,-871,-1175,-1166,-1137,-1128,-958,-1110,-1055,-1006,-29990,-29991]} 1. d4 {[%emt 0:00:02]} e6 {[%emt 0:00:35]} 2. c4 {[%emt 0:01:11]} Bb4+ {[%emt 0:02:01]} 3. Bd2 {[%emt 0:00:28]} a5 {[%emt 0:00:06]} 4. e4 {[%emt 0:03:03][%cal Be2e4,Be4e5][%mdl 32]} d5 {[%emt 0:00:42]} 5. cxd5 {[%emt 0:01:56]} exd5 {[%emt 0:00:05]} 6. e5 {[%emt 0:06:18] [#] A40: Unusual replies to 1 d4.} Nh6 $146 {[%emt 0:03:38]} (6... Ne7 $11 {feels stronger.}) ({Predecessor:} 6... Nc6 7. a3 Bxd2+ 8. Qxd2 Nge7 9. Bb5 O-O 10. Ne2 b6 11. Nbc3 Ba6 12. Bxa6 Rxa6 {½-½ Dzagnidze,N (2510)-Paehtz,E (2477) Global Chess League rapid 2023 (3.5)}) 7. a3 {[%emt 0:02:11]} (7. Nc3 $14) 7... Bxd2+ $1 $11 {[%emt 0:00:09]} 8. Qxd2 {[%emt 0:00:05] The position is equal.} f6 {[%emt 0:05:54]} 9. Nc3 {[%emt 0:07:57] aiming for exf6.} O-O {[%emt 0:02:30]} 10. f4 {[%emt 0:02:24]} fxe5 {[%emt 0:03:01]} 11. fxe5 {[%emt 0:06:37]} (11. dxe5 $5 {[%cal Rd2d5]} c6 12. Nf3 $11) 11... Ng4 {[%emt 0:22:56] And now ...Nf2 would win.} 12. Nh3 {[%emt 0:01:55] Wards off Nf2} (12. Nf3 Rxf3 13. gxf3 Qh4+ 14. Kd1 Nf2+ 15. Kc1 Nxh1 $17) 12... c5 {[%emt 0:05:34] Black is more active.} 13. Nf4 {[%emt 0:22:56] [#] Black converts the advantage convincingly.} ({Better is} 13. dxc5 $15 d4 14. O-O-O (14. Bc4+ Kh8 $17)) 13... Nc6 $1 $17 {[%emt 0:02:15]} 14. dxc5 {[%emt 0:07:59] [#]} (14. Bb5 $17) 14... d4 $1 $19 {[%emt 0:01:15]} ({Stronger than} 14... Ngxe5 15. Qxd5+ Qxd5 16. Ncxd5 $11) 15. Bc4+ {[%emt 0:06:38]} (15. O-O-O $142) 15... Kh8 {[%emt 0:01:46]} 16. Ncd5 {[%emt 0:01:03] Prevents Ne3.} Ngxe5 {[%emt 0:03:16]} ({Worse is} 16... Ncxe5 17. Ba2 Qh4+ 18. g3 Nf3+ 19. Ke2 Nxd2 20. gxh4 $17) 17. Ba2 {[%emt 0:01:47]} g5 {[%emt 0:05:32]} 18. Ne2 {[%emt 0:05:15]} Be6 {[%emt 0:16:50]} 19. Nb6 {[%emt 0:20:15]} (19. Nxd4 $142 Bxd5 20. Nxc6 Bxc6 21. Qc3) 19... Bxa2 {[%emt 0:00:05]} 20. Rxa2 {[%emt 0:00:00]} Rb8 {[%emt 0:00:28]} 21. h4 {[%emt 0:00:00]} d3 {[%emt 0:03:33]} 22. Nc3 {[%emt 0:00:00]} gxh4 {[%emt 0:01:20]} 23. Ncd5 {[%emt 0:00:00]} Qe8 {[%emt 0:01:35]} 24. Kd1 {[%emt 0:00:00]} Rd8 {[%emt 0:05:49][%cal Od8d5] Hoping for ...Rxd5!} 25. b4 {[%emt 0:00:00]} Qe6 {[%emt 0:03:23]} 26. Ne3 {[%emt 0:00:00]} Qb3+ {[%emt 0:04:12]} 27. Kc1 {[%emt 0:00:00]} Nd4 {[%emt 0:00:18][%cal Bc6d4,Bd4e2,Be2c3][%mdl 32] ( -> ...Ne2+)} 28. Rb2 {[%emt 0:00:34] White is weak on the light squares} Ne2+ {[%emt 0:01:49]} 29. Kb1 {[%emt 0:00:22]} Nc3+ {[%emt 0:00:26]} 30. Kc1 {[%emt 0:00:11]} Qxa3 {[%emt 0:00:14] Artfully played by Bauer.   Weighted Error Value: White=1.30/Black=0.45} 0-1

[Event "26th OIBM 2023"]
[Site "Gmund am Tegernsee"]
[Date "2023.11.05"]
[Round "9.8"]
[White "Kulaots, Kaido"]
[Black "Unuk, Laura"]
[Result "1-0"]
[ECO "C60"]
[WhiteElo "2508"]
[BlackElo "2313"]
[Annotator "RC"]
[PlyCount "157"]
[EventDate "2023.10.04"]
[EventType "swiss"]
[EventCountry "GER"]
[SourceTitle "playchess.com"]
[Source "ChessBase"]
[SourceQuality "1"]
[TimeControl "40/5400+30:1800+30"]

1. e4 {[%emt 0:00:06]} e5 {[%emt 0:04:12]} 2. Nf3 {[%emt 0:00:05]} Nc6 {[%emt 0:00:05]} 3. Bb5 {[%emt 0:00:05]} Nge7 {[%emt 0:01:11]} 4. Nc3 {[%emt 0:00:29]} Ng6 {[%emt 0:00:23]} 5. d4 {[%emt 0:02:12]} Nxd4 {[%emt 0:04:35]} 6. Nxd4 {[%emt 0:00:06]} exd4 {[%emt 0:00:03]} 7. Qxd4 {[%emt 0:00:06]} c6 {[%emt 0:00:08]} 8. Be2 {[%emt 0:01:59]} Qb6 {[%emt 0:00:26]} 9. Qd3 {[%emt 0:02:59]} Be7 {[%emt 0:00:34]} 10. O-O {[%emt 0:00:07]} O-O {[%emt 0:04:04]} 11. a4 {[%emt 0:07:24]} d6 {[%emt 0:02:15]} 12. a5 {[%emt 0:01:51]} Qc7 {[%emt 0:00:47]} 13. Bh5 {[%emt 0:14:16]} Ne5 {[%emt 0:22:03]} 14. Qg3 {[%emt 0:00:47]} f5 {[%emt 0:00:30]} 15. Be2 {[%emt 0:25:23]} Ng6 {[%emt 0:13:06]} 16. f4 {[%emt 0:04:32]} fxe4 {[%emt 0:02:36]} 17. Nxe4 {[%emt 0:00:41]} Bf5 {[%emt 0:02:58]} 18. Qb3+ {[%emt 0:04:32]} d5 {[%emt 0:02:07]} 19. Ng3 {[%emt 0:00:04]} Bc5+ {[%emt 0:01:04]} 20. Kh1 {[%emt 0:00:20]} Rae8 {[%emt 0:08:46]} 21. Bh5 {[%emt 0:00:39]} Qd7 {[%emt 0:02:46]} 22. Bd2 {[%emt 0:03:39]} Kh8 {[%emt 0:03:23]} 23. Rac1 {[%emt 0:18:00]} b6 {[%emt 0:10:26]} 24. axb6 {[%emt 0:00:51]} axb6 {[%emt 0:00:50]} 25. Qf3 {[%emt 0:04:22]} Be4 {[%emt 0:05:34]} 26. Qg4 {[%emt 0:00:21]} Qxg4 {[%emt 0:06:30]} 27. Bxg4 {[%emt 0:00:03]} Nh4 {[%emt 0:00:17]} 28. Nxe4 {[%emt 0:00:05]} Rxe4 {[%emt 0:01:23]} 29. Rce1 {[%emt 0:03:04]} Nf5 {[%emt 0:00:45]} 30. Bf3 {[%emt 0:05:10]} Rxe1 {[%emt 0:00:58]} 31. Rxe1 {[%emt 0:00:05]} Kg8 {[%emt 0:00:13]} 32. c3 {[%emt 0:00:42]} Kf7 {[%emt 0:00:45]} 33. b4 {[%emt 0:00:29]} Be7 {[%emt 0:00:29]} 34. b5 {[%emt 0:00:12]} Nh4 {[%emt 0:00:31]} 35. Bg4 {[%emt 0:00:14]} cxb5 {[%emt 0:00:28]} 36. g3 {[%emt 0:01:04]} Ng6 {[%emt 0:00:40]} 37. Be6+ {[%emt 0:00:19]} Ke8 {[%emt 0:00:30]} 38. Bxd5 {[%emt 0:01:04]} Rf6 {[%emt 0:00:14]} 39. Be3 {[%emt 0:00:28]} Rd6 {[%emt 0:00:37]} 40. Be4 {[%emt 0:00:18]} Kd8 {[%emt 0:00:41]} 41. f5 {[%emt 0:10:38]} Ne5 {[%emt 0:02:49]} 42. Bf4 {[%emt 0:00:37]} Bf6 {[%emt 0:00:16]} 43. Rb1 {[%emt 0:00:40]} Nd3 {[%emt 0:11:08]} 44. Bxd6 {[%emt 0:00:58]} Nf2+ {[%emt 0:00:04]} 45. Kg2 {[%emt 0:00:08]} Nxe4 {[%emt 0:00:03]} 46. Bb4 {[%emt 0:00:41]} Nxc3 {[%emt 0:01:04]} 47. Bxc3 {[%emt 0:03:09]} Bxc3 {[%emt 0:00:05]} 48. Rxb5 {[%emt 0:00:05]} Kc7 {[%emt 0:00:05]} 49. Kf3 {[%emt 0:00:22]} Kc6 {[%emt 0:00:16]} 50. Rb3 {[%emt 0:02:50]} Bf6 {[%emt 0:02:37]} 51. g4 {[%emt 0:00:51]} b5 {[%emt 0:01:15]} 52. Ke4 {[%emt 0:00:10]} Kc5 {[%emt 0:02:15]} 53. Ra3 {[%emt 0:00:59]} b4 {[%emt 0:03:43]} 54. Ra7 {[%emt 0:00:07]} b3 {[%emt 0:05:15]} 55. Kd3 {[%emt 0:09:51]} h6 {[%emt 0:02:50]} 56. Ra5+ {[%emt 0:01:57]} Kd6 {[%emt 0:03:07]} 57. Rb5 {[%emt 0:00:28]} b2 {[%emt 0:00:12]} 58. Kc2 {[%emt 0:00:14]} Kc6 {[%emt 0:01:04]} 59. Rb3 {[%emt 0:00:42]} Kd5 {[%emt 0:00:23]} 60. Re3 {[%emt 0:00:15]} Be5 {[%emt 0:01:30]} 61. h4 {[%emt 0:02:39]} Bf6 {[%emt 0:00:18]} 62. Re6 {[%emt 0:00:25]} Bxh4 {[%emt 0:00:28]} 63. Kxb2 {[%emt 0:00:04]} Bf6+ {[%emt 0:00:16]} 64. Kc2 {[%emt 0:00:03]} Kd4 {[%emt 0:00:10]} 65. Re2 {[%emt 0:03:14]} Be5 {[%emt 0:00:04]} 66. Kd2 {[%emt 0:00:30]} Bf4+ {[%emt 0:00:27]} 67. Ke1 {[%emt 0:00:06]} Be3 {[%emt 0:00:31]} 68. Ra2 {[%emt 0:00:17]} Bg5 {[%emt 0:01:37]} 69. Ke2 {[%emt 0:00:09]} Ke4 {[%emt 0:00:37]} 70. Ra4+ {[%emt 0:00:05]} Ke5 {[%emt 0:00:10]} 71. Kf3 {[%emt 0:00:10]} Bd8 {[%emt 0:00:50]} 72. Ra6 {[%emt 0:00:24]} Bf6 {[%emt 0:00:34]} 73. Re6+ {[%emt 0:00:34]} Kd5 {[%emt 0:00:02]} 74. Rxf6 {[%emt 0:01:12]} gxf6 {[%emt 0:00:04]} 75. Kg3 {[%emt 0:00:03]} Ke5 {[%emt 0:01:00]} 76. Kh4 {[%emt 0:00:04]} Kf4 {[%emt 0:00:49]} 77. Kh5 {[%emt 0:00:04]} Kg3 {[%emt 0:00:03]} 78. Kxh6 {[%emt 0:00:06]} Kxg4 {[%emt 0:00:04]} 79. Kg6 {[%emt 0:00:04]} 1-0